bitfinex/quotes_BTCUSD_20251015
["timestamp","ask_amount","ask_price","bid_price","bid_amount"]
[1760537733220,0.0239525,112260.0,112250.0,0.17817371]
[1760537733437,0.01918312,112260.0,112250.0,0.29401371]
[1760537733565,0.01918312,112260.0,112250.0,0.17817371]
[1760537733776,0.01918312,112260.0,112250.0,0.29397371]
[1760537734600,0.01918312,112260.0,112250.0,0.17817371]
[1760537734863,0.01918312,112260.0,112250.0,0.73277426]
[1760537735039,0.01918312,112260.0,112250.0,0.84853426]
[1760537735273,0.23388201,112280.0,112270.0,0.17814197]
[1760537735470,0.25306128,112280.0,112270.0,0.29390197]
[1760537735741,0.25306128,112280.0,112260.0,0.17814373]
[1760537735996,0.25306128,112280.0,112270.0,0.00050427]
[1760537736231,0.25306128,112280.0,112270.0,0.29440624]
[1760537736478,0.22175958,112280.0,112270.0,0.29386197]
[1760537736907,0.22175958,112280.0,112270.0,0.11572]
[1760537737534,0.22175958,112280.0,112260.0,0.57814373]
[1760537737738,0.22175958,112280.0,112270.0,0.11568]
[1760537738145,0.21675958,112280.0,112270.0,0.11568]
[1760537738350,0.19780708,112280.0,112270.0,0.11568]
[1760537738566,0.19780708,112280.0,112270.0,0.17814197]
[1760537738772,0.01968097,112280.0,112270.0,0.17814197]
[1760537738972,0.01968097,112280.0,112270.0,0.73274252]
[1760537739176,0.00050092,112280.0,112270.0,0.84838252]
[1760537739897,0.00050092,112280.0,112270.0,0.73274252]
[1760537740126,0.00050092,112280.0,112270.0,0.84838252]
[1760537740334,0.00050092,112280.0,112270.0,0.84834252]
[1760537740946,0.00050092,112280.0,112270.0,0.84830252]
[1760537741260,0.00050092,112280.0,112270.0,1.24830252]
[1760537741463,0.00050092,112280.0,112270.0,6.50163218]
[1760537741658,0.00050092,112280.0,112270.0,6.61719218]
[1760537741862,0.00050092,112280.0,112270.0,1.61719218]
[1760537742092,0.00050092,112280.0,112270.0,0.71595209]
[1760537742322,0.00050092,112280.0,112270.0,0.66783209]
[1760537742551,0.00050092,112280.0,112270.0,0.83147209]
[1760537742742,0.00050092,112280.0,112270.0,0.69366197]
[1760537742743,0.17862703,112280.0,112270.0,0.69366197]
[1760537743283,0.17862703,112280.0,112270.0,0.4]
[1760537743485,0.17862703,112280.0,112270.0,0.57814197]
[1760537743931,0.00050092,112280.0,112270.0,0.57814197]
[1760537744369,0.00050092,112280.0,112270.0,0.78331209]
[1760537744581,0.00050092,112280.0,112270.0,1.24822252]
[1760537744986,0.00050092,112280.0,112270.0,1.58822252]
[1760537745190,0.00050092,112280.0,112270.0,1.58818252]
[1760537745620,0.00050092,112280.0,112270.0,7.42498261]
[1760537745825,0.00050092,112280.0,112270.0,6.96007218]
[1760537746032,0.00050092,112280.0,112270.0,6.95707218]
[1760537746644,0.00050092,112280.0,112270.0,7.00519218]
[1760537746869,0.0717521,112310.0,112300.0,0.17809439]
[1760537747073,0.0717521,112310.0,112300.0,0.84822464]
[1760537747282,0.0717521,112310.0,112300.0,0.38339421]
[1760537747503,0.17806292,112320.0,112310.0,0.17807853]
[1760537747710,0.268969,112330.0,112320.0,0.17806267]
[1760537747911,0.24979892,112330.0,112320.0,0.29358267]
[1760537748124,0.17804682,112330.0,112320.0,0.17806267]
[1760537748330,0.17804682,112330.0,112320.0,0.11552]
[1760537748530,0.17806267,112320.0,112310.0,0.4]
[1760537749074,0.17806267,112320.0,112310.0,0.51548]
[1760537749493,0.17806267,112320.0,112310.0,0.4]
[1760537749696,0.17806267,112320.0,112310.0,0.51548]
[1760537750177,0.17806267,112320.0,112310.0,0.4]
[1760537750390,0.17806267,112320.0,112310.0,0.51548]
[1760537750606,0.17806267,112320.0,112310.0,0.51544]
[1760537750825,0.06806267,112320.0,112310.0,0.51544]
[1760537751039,0.08689079,112320.0,112310.0,0.51544]
[1760537751478,0.08689079,112320.0,112310.0,0.5154]
[1760537751707,0.17807853,112310.0,112300.0,0.1781838]
[1760537751915,0.17807853,112310.0,112300.0,0.1154897]
[1760537752130,0.17807853,112310.0,112300.0,0.29358409]
[1760537752348,0.17807853,112310.0,112300.0,0.4000897]
[1760537752784,0.17807853,112310.0,112300.0,0.5154497]
[1760537753641,0.34,112320.0,112300.0,0.5154497]
[1760537753851,0.17807853,112310.0,112300.0,0.4000897]
[1760537754062,0.17807853,112310.0,112300.0,0.5154497]
[1760537754539,0.64395093,112310.0,112300.0,0.4000897]
[1760537754755,0.64395093,112310.0,112300.0,8.97e-05]
[1760537755444,0.64395093,112310.0,112300.0,0.1154097]
[1760537755654,0.64395093,112310.0,112300.0,0.1153697]
[1760537756296,0.64395093,112310.0,112300.0,8.97e-05]
[1760537756503,0.64395093,112310.0,112300.0,0.1153697]
[1760537756988,0.72068638,112310.0,112300.0,0.1153697]
[1760537757258,0.72068638,112310.0,112300.0,0.1153297]
[1760537757489,0.64395093,112310.0,112300.0,0.1153297]
[1760537758618,0.64395093,112310.0,112300.0,8.97e-05]
[1760537758860,0.64395093,112310.0,112300.0,0.1152897]
[1760537760445,0.64395093,112310.0,112300.0,0.1152497]
[1760537761110,0.66536993,112310.0,112300.0,1e-08]
[1760537761332,5.66536993,112310.0,112300.0,1e-08]
[1760537761558,5.75919993,112310.0,112300.0,1e-08]
[1760537762279,5.82214099,112310.0,112300.0,1e-08]
[1760537762510,5.79973622,112310.0,112300.0,1e-08]
[1760537762741,0.55435599,112250.0,112240.0,0.0717521]
[1760537762967,0.72091572,112250.0,112240.0,0.18737302]
[1760537763195,0.64404611,112250.0,112240.0,0.11562092]
[1760537763417,0.64404611,112250.0,112240.0,0.00050092]
[1760537763639,0.64404611,112250.0,112240.0,0.11562092]
[1760537764080,0.64404611,112250.0,112240.0,0.11558092]
[1760537764548,0.17815784,112260.0,112240.0,0.29377051]
[1760537764549,0.17815826,112260.0,112240.0,0.29377051]
[1760537764760,0.01882812,112250.0,112240.0,0.29377019]
[1760537764984,0.19700183,112250.0,112240.0,0.29377051]
[1760537765250,0.26784838,112260.0,112240.0,0.17869051]
[1760537765474,0.52706882,112270.0,112250.0,0.17817371]
[1760537765700,0.08969012,112270.0,112260.0,0.17815784]
[1760537765926,0.01882812,112270.0,112260.0,0.29323784]
[1760537766366,0.17814197,112270.0,112260.0,0.17815784]
[1760537766584,0.17815784,112280.0,112260.0,0.29323784]
[1760537766799,0.27613655,112290.0,112270.0,0.29322197]
[1760537767022,0.17811082,112290.0,112270.0,0.17814197]
[1760537767232,0.17811082,112290.0,112280.0,0.29316611]
[1760537767451,0.17811025,112290.0,112280.0,0.29316611]
[1760537767672,0.18702822,112310.0,112290.0,0.17811025]
[1760537768116,0.18702822,112310.0,112300.0,0.11508]
[1760537768350,0.18702822,112310.0,112290.0,0.17811025]
[1760537768659,0.17812123,112290.0,112280.0,0.17812611]
[1760537768921,0.17812123,112290.0,112270.0,0.18704906]
[1760537768922,0.17812611,112280.0,112260.0,0.58706573]
[1760537769189,0.17814197,112270.0,112260.0,0.48969012]
[1760537769453,0.17814197,112270.0,112260.0,0.4]
[1760537769731,0.17814197,112270.0,112260.0,0.57815784]
[1760537769972,0.17814197,112270.0,112260.0,0.69323784]
[1760537770190,0.17814197,112270.0,112260.0,0.51504]
[1760537770405,0.17814197,112270.0,112240.0,0.17818959]
[1760537770406,0.31245516,112270.0,112240.0,0.17818959]
[1760537770627,0.17818959,112240.0,112230.0,0.00847757]
[1760537770842,0.17818959,112240.0,112230.0,0.58870673]
[1760537771056,0.17818959,112240.0,112230.0,0.70172304]
[1760537771501,0.29451714,112270.0,112250.0,0.17817371]
[1760537771502,0.25889033,112270.0,112250.0,0.17817371]
[1760537771724,0.25889587,112270.0,112260.0,0.11504]
[1760537772147,0.18714377,112270.0,112260.0,0.17815784]
[1760537772360,0.17823114,112270.0,112260.0,0.29319784]
[1760537772818,0.17823114,112270.0,112260.0,0.11504]
[1760537773036,0.17823114,112270.0,112250.0,0.17817371]
[1760537773484,0.17823114,112270.0,112260.0,0.11504]
[1760537773701,0.1781728,112260.0,112250.0,0.17817371]
[1760537773909,0.18713823,112270.0,112250.0,0.17817371]
[1760537774179,0.18713823,112270.0,112260.0,0.17815784]
[1760537774180,8.917e-05,112270.0,112260.0,0.17815784]
[1760537774389,8.917e-05,112270.0,112260.0,6.18775839]
[1760537774608,8.917e-05,112270.0,112260.0,1.18787839]
[1760537774829,8.917e-05,112270.0,112260.0,1.52087839]
[1760537775255,8.917e-05,112270.0,112260.0,1.63595839]
[1760537775477,8.917e-05,112270.0,112260.0,6.63595839]
[1760537775722,1e-08,112270.0,112260.0,6.62251844]
[1760537775930,1e-08,112270.0,112260.0,7.15391504]
[1760537776143,0.0717521,112310.0,112300.0,0.17809439]
[1760537776355,0.07184105,112310.0,112300.0,0.29317439]
[1760537776553,8.895e-05,112310.0,112300.0,0.26778451]
[1760537776760,8.895e-05,112310.0,112300.0,0.84777494]
[1760537777612,8.895e-05,112310.0,112300.0,1.24773494]
[1760537777842,8.895e-05,112310.0,112300.0,1.47269494]
[1760537778050,8.895e-05,112310.0,112300.0,1.58773494]
[1760537778468,8.895e-05,112310.0,112300.0,1.63581494]
[1760537778680,8.895e-05,112310.0,112300.0,1.52081494]
[1760537778892,8.895e-05,112310.0,112300.0,6.64716356]
[1760537779106,8.895e-05,112310.0,112300.0,7.43236982]
[1760537779320,8.895e-05,112310.0,112300.0,7.31736982]
[1760537779530,8.895e-05,112310.0,112300.0,7.57030951]
[1760537779754,8.895e-05,112310.0,112300.0,7.68530951]
[1760537779967,8.895e-05,112310.0,112300.0,7.72126418]
[1760537780184,0.0717521,112350.0,112340.0,0.17803097]
[1760537780185,0.24976786,112350.0,112340.0,0.17803097]
[1760537780454,0.24976786,112350.0,112340.0,0.29312488]
[1760537780666,0.17801576,112350.0,112340.0,0.11509391]
[1760537780873,0.17801576,112350.0,112340.0,0.51505391]
[1760537781100,0.17801576,112350.0,112340.0,0.40013391]
[1760537781544,0.17801576,112350.0,112340.0,0.51505391]
[1760537781984,0.17801576,112350.0,112340.0,0.40013391]
[1760537782197,0.17801576,112350.0,112340.0,0.51505391]
[1760537782898,0.67949062,112350.0,112340.0,0.00013391]
[1760537783120,0.66302552,112350.0,112340.0,0.11501391]
[1760537783790,0.66302552,112350.0,112340.0,0.00013391]
[1760537784043,0.64388816,112350.0,112340.0,0.11501391]
[1760537784264,0.51801513,112350.0,112340.0,0.11501391]
[1760537784477,0.17800882,112360.0,112340.0,0.29304488]
[1760537784692,0.01818602,112350.0,112340.0,0.00013391]
[1760537784904,0.19620115,112350.0,112340.0,0.11501391]
[1760537785124,0.17801513,112350.0,112340.0,0.11497391]
[1760537785338,0.17800882,112360.0,112340.0,0.29300488]
[1760537785598,0.34,112360.0,112350.0,0.17801513]
[1760537785808,0.17799928,112360.0,112350.0,0.29285513]
[1760537786455,0.52695735,112370.0,112350.0,0.17801513]
[1760537786669,0.27895874,112380.0,112360.0,0.17799928]
[1760537786915,0.10088683,112380.0,112370.0,0.1148]
[1760537787122,0.17798344,112370.0,112350.0,0.18691588]
[1760537787331,0.17798344,112370.0,112360.0,0.1148]
[1760537787551,0.17798344,112370.0,112360.0,0.11518866]
[1760537787780,0.29844005,112380.0,112360.0,0.29322794]
[1760537788007,0.17798344,112370.0,112350.0,0.18691588]
[1760537788272,0.17799928,112360.0,112350.0,0.18691588]
[1760537788478,0.17798344,112370.0,112350.0,0.30171588]
[1760537788897,0.17801513,112350.0,112340.0,0.00013391]
[1760537789142,0.18688261,112370.0,112350.0,0.17801481]
[1760537789143,0.17798403,112370.0,112350.0,0.17801481]
[1760537789341,0.17798403,112370.0,112360.0,0.1148]
[1760537790284,0.11157407,112380.0,112360.0,0.1148]
[1760537790501,0.11157407,112380.0,112370.0,0.29278344]
[1760537790710,0.13040219,112380.0,112370.0,0.17798344]
[1760537790947,0.30836979,112380.0,112360.0,0.17799928]
[1760537791204,0.17798344,112370.0,112360.0,0.17799928]
[1760537791405,0.17798344,112370.0,112360.0,0.29275928]
[1760537791823,0.17798344,112370.0,112350.0,0.57801507]
[1760537792032,0.17798344,112370.0,112360.0,0.11537558]
[1760537792243,0.17798344,112370.0,112360.0,0.11533558]
[1760537792456,0.17798344,112370.0,112360.0,0.00061558]
[1760537792667,0.1968274,112360.0,112350.0,0.4]
[1760537792903,0.17799928,112360.0,112350.0,0.51476]
[1760537793113,0.17799928,112360.0,112350.0,0.57801513]
[1760537793368,0.17798344,112370.0,112350.0,0.57801513]
[1760537793583,0.29844439,112380.0,112360.0,0.29475928]
[1760537793786,0.11157407,112380.0,112370.0,0.17798344]
[1760537793993,0.11971495,112380.0,112370.0,0.29270344]
[1760537794417,0.11971495,112380.0,112370.0,0.17798344]
[1760537794627,0.10088683,112380.0,112370.0,0.17798344]
[1760537794853,0.10088683,112380.0,112360.0,0.17799928]
[1760537795057,0.27885478,112380.0,112360.0,0.2676894]
[1760537795485,0.10088683,112380.0,112370.0,0.17798344]
[1760537795685,0.10088683,112380.0,112370.0,0.29266344]
[1760537795968,0.10088683,112380.0,112370.0,0.17798344]
[1760537796171,0.10088683,112380.0,112370.0,0.29266344]
[1760537796583,0.27885443,112380.0,112370.0,0.17798344]
[1760537796822,0.27885443,112380.0,112370.0,0.11468]
[1760537797028,0.27885443,112380.0,112360.0,0.2676894]
[1760537797255,0.27885443,112380.0,112370.0,0.17998344]
[1760537797462,0.27885443,112380.0,112370.0,0.002]
[1760537797667,0.27885443,112380.0,112370.0,0.11664]
[1760537797869,0.27885443,112380.0,112370.0,0.002]
[1760537798501,0.17799476,112370.0,112350.0,0.63499413]
[1760537798705,0.17799476,112370.0,112360.0,0.29259928]
[1760537798916,0.10088683,112380.0,112360.0,0.38427791]
[1760537799121,0.27885504,112380.0,112370.0,0.29262344]
[1760537799353,0.27885504,112380.0,112370.0,0.17998344]
[1760537799548,0.27885504,112380.0,112370.0,0.29458344]
[1760537799777,0.27885504,112380.0,112370.0,0.29258344]
[1760537799981,0.27885504,112380.0,112370.0,0.17798344]
[1760537800191,0.10088683,112380.0,112370.0,0.38227356]
[1760537800387,0.10088683,112380.0,112370.0,0.26767356]
[1760537801064,0.27885443,112380.0,112370.0,0.26767356]
[1760537801272,0.27885443,112380.0,112370.0,0.11456]
[1760537801486,0.27885443,112380.0,112360.0,0.17798779]
[1760537801705,0.27885443,112380.0,112370.0,0.11656]
[1760537802555,0.17798344,112370.0,112360.0,0.26768922]
[1760537802804,0.17798344,112370.0,112360.0,0.38420922]
[1760537803220,0.27885443,112380.0,112360.0,0.26768922]
[1760537803423,0.27885443,112380.0,112370.0,0.17998344]
[1760537803657,0.27885443,112380.0,112370.0,0.002]
[1760537804104,0.27885443,112380.0,112370.0,0.11648]
[1760537804314,0.27885443,112380.0,112370.0,0.002]
[1760537804565,0.27885443,112380.0,112370.0,0.11648]
[1760537804781,0.17799928,112360.0,112350.0,0.57801513]
[1760537804999,0.17799752,112370.0,112360.0,0.002]
[1760537805211,0.17799752,112370.0,112360.0,0.11648]
[1760537805420,0.17799928,112360.0,112350.0,0.57801513]
[1760537805891,0.17799752,112370.0,112350.0,0.69249513]
[1760537806105,0.37744293,112380.0,112370.0,0.17798344]
[1760537806106,0.28775281,112380.0,112370.0,0.17798344]
[1760537806328,0.10088683,112380.0,112370.0,0.17798344]
[1760537806775,0.27885443,112380.0,112370.0,0.29246344]
[1760537807215,0.27885443,112380.0,112370.0,0.17798344]
[1760537807433,0.27885443,112380.0,112370.0,0.29246344]
[1760537807648,0.10088683,112380.0,112370.0,0.29246344]
[1760537807895,0.27885443,112380.0,112360.0,0.2676894]
[1760537808108,0.10088683,112380.0,112370.0,0.17868527]
[1760537808329,0.10088683,112380.0,112370.0,0.29246344]
[1760537808801,0.27885443,112380.0,112360.0,0.2676894]
[1760537809038,0.27885443,112380.0,112360.0,0.2696894]
[1760537809256,0.27885443,112380.0,112370.0,0.17798344]
[1760537809476,0.27885443,112380.0,112360.0,0.2676894]
[1760537809477,0.17798344,112370.0,112360.0,0.2676894]
[1760537809950,0.17798344,112370.0,112360.0,0.3821694]
[1760537810173,0.17798344,112370.0,112350.0,0.4]
[1760537810389,0.17799928,112360.0,112350.0,0.4]
[1760537810600,0.17799928,112360.0,112350.0,0.51448]
[1760537810838,0.12164432,112370.0,112350.0,0.4]
[1760537811049,0.17799928,112360.0,112350.0,0.4]
[1760537811309,0.17799928,112360.0,112350.0,0.51448]
[1760537811521,0.17799928,112360.0,112340.0,0.00013391]
[1760537811522,0.17801513,112350.0,112340.0,0.00013391]
[1760537812375,0.17801513,112350.0,112340.0,0.11461391]
[1760537812634,0.51801513,112350.0,112340.0,0.11461391]
[1760537812831,0.51801513,112350.0,112340.0,0.00013391]
[1760537813036,0.51801513,112350.0,112340.0,0.11461391]
[1760537813260,0.51801513,112350.0,112340.0,0.00013391]
[1760537813490,0.51801513,112350.0,112340.0,0.11661391]
[1760537813721,0.64388753,112350.0,112340.0,0.00213391]
[1760537813937,0.64388753,112350.0,112340.0,0.11661391]
[1760537814364,0.64388753,112350.0,112340.0,0.00213391]
[1760537814787,0.64388753,112350.0,112340.0,0.11461391]
[1760537814995,0.64388753,112350.0,112340.0,0.00013391]
[1760537815208,0.64388753,112350.0,112340.0,0.11561391]
[1760537815634,0.72607621,112350.0,112340.0,0.11561391]
[1760537815849,0.72607621,112350.0,112340.0,0.00113391]
[1760537816069,0.72607621,112350.0,112340.0,0.11461391]
[1760537816283,0.76189498,112350.0,112340.0,0.11461391]
[1760537816487,0.6797063,112350.0,112340.0,0.11561391]
[1760537816696,0.6797063,112350.0,112340.0,0.11461391]
[1760537817348,0.6797063,112350.0,112340.0,0.00013391]
[1760537818201,0.6797063,112350.0,112340.0,0.00113391]
[1760537818383,0.76786379,112350.0,112340.0,0.00013391]
[1760537818854,0.76786379,112350.0,112340.0,0.00113391]
[1760537819722,0.51806267,112320.0,112310.0,0.04808]
[1760537819951,0.51807853,112310.0,112300.0,0.0016]
[1760537820176,0.51807853,112310.0,112300.0,0.29519912]
[1760537820393,0.51807853,112310.0,112300.0,0.29430865]
[1760537820394,0.01105214,112310.0,112300.0,0.29430865]
[1760537820611,0.17807853,112310.0,112300.0,0.29430865]
[1760537821027,0.17807853,112310.0,112300.0,0.00173426]
[1760537821244,0.17807853,112310.0,112300.0,0.11725426]
[1760537821245,0.52896029,112310.0,112300.0,0.11725426]
[1760537821472,0.52896029,112310.0,112300.0,0.11721426]
[1760537821688,0.01088176,112310.0,112300.0,0.11621426]
[1760537821901,0.02970988,112310.0,112300.0,0.11621426]
[1760537822108,0.19690665,112310.0,112300.0,0.11956088]
[1760537822315,0.17807853,112310.0,112300.0,0.11956088]
[1760537822532,0.60776865,112310.0,112300.0,0.00373426]
[1760537822753,0.64395093,112310.0,112300.0,0.11925426]
[1760537823178,0.64395093,112310.0,112300.0,0.00473426]
[1760537823393,0.64395093,112310.0,112300.0,0.00273426]
[1760537823394,0.654782,112310.0,112300.0,0.00273426]
[1760537824288,0.654782,112310.0,112300.0,0.00373426]
[1760537824501,0.654782,112310.0,112300.0,0.00273426]
[1760537824502,0.73806655,112310.0,112300.0,0.00273426]
[1760537824716,0.51809439,112300.0,112290.0,0.11452]
[1760537824893,0.60778451,112300.0,112290.0,0.11465432]
[1760537825611,0.64396679,112300.0,112290.0,1e-08]
[1760537826475,5.64396679,112300.0,112290.0,1e-08]
[1760537826755,5.73364887,112300.0,112290.0,1e-08]
[1760537827421,0.64396679,112300.0,112290.0,1e-08]
[1760537830657,0.30396679,112300.0,112290.0,0.11452001]
[1760537831098,0.26778451,112300.0,112290.0,0.11452001]
[1760537831322,0.1889096,112310.0,112290.0,0.11452001]
[1760537831587,0.18695992,112340.0,112310.0,0.18696834]
[1760537831882,0.17806267,112320.0,112310.0,0.18696834]
[1760537832105,0.24979963,112330.0,112310.0,0.58696834]
[1760537832106,0.17804682,112330.0,112310.0,0.58696834]
[1760537832332,0.17804682,112330.0,112310.0,0.70148834]
[1760537832333,0.1947582,112330.0,112310.0,0.70148834]
[1760537832564,0.17803531,112340.0,112330.0,0.17804579]
[1760537832790,0.24976723,112350.0,112330.0,0.29256579]
[1760537832791,0.2607335,112350.0,112330.0,0.29256579]
[1760537833010,0.17803097,112340.0,112330.0,0.17804579]
[1760537833229,0.17803097,112340.0,112330.0,0.29256579]
[1760537833928,0.17811995,112340.0,112330.0,0.17804579]
[1760537834165,0.17811995,112340.0,112330.0,0.29256579]
[1760537834420,0.17811995,112340.0,112330.0,0.11452]
[1760537834634,0.17811995,112340.0,112330.0,0.11552]
[1760537835073,0.17811995,112340.0,112330.0,0.11895609]
[1760537835990,0.17811995,112340.0,112330.0,0.00443609]
[1760537836218,0.26781007,112340.0,112330.0,0.11552]
[1760537836667,8.898e-05,112340.0,112330.0,0.11552]
[1760537836891,8.898e-05,112340.0,112330.0,0.17804682]
[1760537837138,0.17811995,112340.0,112330.0,0.11452]
[1760537837792,0.17804682,112330.0,112320.0,0.17806102]
[1760537838016,0.17811995,112340.0,112330.0,0.17904682]
[1760537838483,0.17811995,112340.0,112330.0,0.001]
[1760537838918,0.68159277,112340.0,112330.0,0.001]
[1760537839125,0.68159277,112340.0,112330.0,0.11552]
[1760537839372,0.64399235,112340.0,112330.0,0.11452]
[1760537839588,0.17806267,112320.0,112310.0,0.00294941]
[1760537839804,0.17807853,112310.0,112300.0,0.4]
[1760537840017,0.17807853,112310.0,112300.0,0.69261439]
[1760537840240,0.17807853,112310.0,112300.0,0.57809439]
[1760537840465,0.17807853,112310.0,112260.0,0.51805374]
[1760537840466,0.1781185,112290.0,112260.0,0.18696163]
[1760537840692,0.17812611,112280.0,112260.0,0.27665175]
[1760537840912,0.17814197,112270.0,112260.0,0.08969012]
[1760537841135,0.17814197,112270.0,112260.0,0.66784796]
[1760537841362,0.17814197,112270.0,112260.0,0.69267784]
[1760537841829,0.17814197,112270.0,112260.0,0.51502092]
[1760537842110,0.18915247,112280.0,112260.0,0.69317876]
[1760537842351,0.17814197,112270.0,112260.0,0.69317876]
[1760537843506,0.17814197,112270.0,112260.0,0.58065876]
[1760537843728,0.18915247,112280.0,112260.0,0.69517876]
[1760537843948,0.18915247,112280.0,112260.0,0.29517876]
[1760537844163,0.17814197,112270.0,112260.0,0.18065876]
[1760537844660,0.17814197,112270.0,112260.0,0.69517876]
[1760537844884,0.18702401,112290.0,112270.0,0.17814197]
[1760537845108,0.19695423,112280.0,112260.0,1.05317068]
[1760537845325,0.17814197,112270.0,112260.0,0.57965732]
[1760537845549,0.17812611,112280.0,112260.0,0.69417732]
[1760537845766,0.18837113,112280.0,112260.0,0.69417732]
[1760537845989,0.17814197,112270.0,112260.0,0.57965732]
[1760537846204,0.17814197,112270.0,112260.0,0.69417732]
[1760537846432,0.17814197,112270.0,112260.0,0.69317732]
[1760537846909,0.17814197,112270.0,112260.0,0.69517732]
[1760537847403,0.17814197,112270.0,112260.0,0.58065732]
[1760537847618,0.17814197,112270.0,112260.0,0.51702092]
[1760537847822,0.17814197,112270.0,112260.0,0.69517876]
[1760537848048,0.18773989,112280.0,112260.0,0.58065876]
[1760537848285,0.17814197,112270.0,112260.0,0.58065876]
[1760537848511,0.17814197,112270.0,112260.0,0.11702092]
[1760537848741,0.21276319,112270.0,112260.0,0.11702092]
[1760537848994,0.67863559,112270.0,112260.0,0.00250092]
[1760537849214,0.67863559,112270.0,112260.0,0.11702092]
[1760537849443,0.67863559,112270.0,112260.0,0.11502092]
[1760537849695,0.64401437,112270.0,112260.0,0.11502092]
[1760537849930,0.64401437,112270.0,112260.0,0.11602092]
[1760537850173,0.64401437,112270.0,112260.0,0.11502092]
[1760537850384,0.51814197,112270.0,112260.0,0.11502092]
[1760537850599,0.51814197,112270.0,112260.0,0.29417876]
[1760537850811,0.51814197,112270.0,112260.0,0.11602092]
[1760537851283,0.58873016,112270.0,112260.0,0.00050092]
[1760537851492,0.58873016,112270.0,112260.0,0.11502092]
[1760537851916,0.58873016,112270.0,112260.0,0.00050092]
[1760537852141,0.58873016,112270.0,112260.0,0.11502092]
[1760537852577,0.58873016,112270.0,112260.0,0.11602092]
[1760537852799,0.58873016,112270.0,112260.0,0.00150092]
[1760537853017,0.58873016,112270.0,112260.0,0.11602092]
[1760537853243,0.51814197,112270.0,112260.0,0.11602092]
[1760537853684,0.51814197,112270.0,112260.0,0.00150092]
[1760537853903,0.51814197,112270.0,112260.0,0.11602092]
[1760537855193,0.51814197,112270.0,112260.0,0.00150092]
[1760537855403,0.18773989,112280.0,112260.0,0.29417876]
[1760537855623,0.52837113,112280.0,112270.0,0.11452]
[1760537855874,0.52837113,112280.0,112260.0,0.64426279]
[1760537855875,0.17814197,112270.0,112260.0,0.64426279]
[1760537856118,0.17814197,112270.0,112260.0,0.17965876]
[1760537856392,0.17814197,112270.0,112260.0,0.29317876]
[1760537856679,0.01024502,112280.0,112270.0,0.17814197]
[1760537856953,0.18837113,112280.0,112270.0,0.17814197]
[1760537857250,0.52702401,112290.0,112270.0,0.29266197]
[1760537857605,0.17812611,112280.0,112270.0,0.29266197]
[1760537857876,0.19695423,112280.0,112270.0,0.11452]
[1760537858161,0.17812611,112280.0,112270.0,0.11452]
[1760537858872,0.17814197,112270.0,112260.0,0.00150092]
[1760537858874,0.17814197,112270.0,112260.0,0.00050092]
[1760537859362,0.17814197,112270.0,112260.0,0.11502092]
[1760537859579,0.22376703,112270.0,112260.0,0.11502092]
[1760537860038,0.17814197,112270.0,112260.0,0.11602092]
[1760537860254,0.17814197,112270.0,112260.0,0.00150092]
[1760537860480,0.64401437,112270.0,112260.0,0.00150092]
[1760537861355,0.64401437,112270.0,112260.0,0.11602092]
[1760537861778,0.64401437,112270.0,112260.0,0.00150092]
[1760537862049,0.72725765,112270.0,112260.0,0.11602092]
[1760537862509,0.64401437,112270.0,112260.0,0.00050092]
[1760537863137,0.64401437,112270.0,112260.0,0.00150092]
[1760537863350,0.51815784,112260.0,112250.0,0.11102092]
[1760537863574,0.60784796,112260.0,112250.0,0.11117033]
[1760537863920,0.38719688,112260.0,112250.0,0.11466941]
[1760537864126,0.56535472,112260.0,112250.0,0.00014941]
[1760537864322,0.56535472,112260.0,112250.0,0.11466941]
[1760537864796,0.56535472,112260.0,112250.0,0.00114941]
[1760537864942,0.56535472,112260.0,112250.0,0.11566941]
[1760537866105,0.56535472,112260.0,112250.0,0.11466941]
[1760537866325,0.56535472,112260.0,112250.0,0.11566941]
[1760537866503,0.56535472,112260.0,112250.0,0.00114941]
[1760537866811,0.56535472,112260.0,112250.0,0.00014941]
[1760537867008,0.56535472,112260.0,112250.0,0.11466941]
[1760537867210,0.56535472,112260.0,112250.0,0.11566941]
[1760537867570,0.1781447,112270.0,112250.0,0.00114941]
[1760537867780,0.19732477,112280.0,112260.0,0.55429415]
[1760537867992,0.19732477,112280.0,112260.0,0.38236796]
[1760537868202,0.19732477,112280.0,112270.0,0.11452]
[1760537868413,0.19732477,112280.0,112260.0,0.26784796]
[1760537868627,0.18841847,112280.0,112270.0,0.29266197]
[1760537868860,0.18702401,112290.0,112270.0,0.29266197]
[1760537869077,0.52702401,112290.0,112280.0,0.11452]
[1760537869283,0.52702401,112290.0,112270.0,0.17814197]
[1760537869494,0.52702401,112290.0,112280.0,0.11452]
[1760537869697,0.51812611,112280.0,112270.0,0.17814197]
[1760537869926,0.51812611,112280.0,112270.0,0.11452]
[1760537870182,0.51812611,112280.0,112270.0,0.17914197]
[1760537870399,0.34,112280.0,112270.0,0.29366197]
[1760537870609,0.51812611,112280.0,112270.0,0.29266197]
[1760537870827,0.51812611,112280.0,112260.0,0.27675585]
[1760537871047,0.51812611,112280.0,112270.0,0.00360545]
[1760537871267,0.51812611,112280.0,112270.0,0.11812545]
[1760537871489,0.51812611,112280.0,112270.0,0.51812545]
[1760537871667,0.51812611,112280.0,112270.0,0.401]
[1760537871903,0.51812611,112280.0,112270.0,0.51552]
[1760537872122,0.51812611,112280.0,112270.0,0.69366197]
[1760537872337,0.51812611,112280.0,112270.0,0.57814197]
[1760537872561,0.51812611,112280.0,112270.0,0.69266197]
[1760537873266,0.51812611,112280.0,112270.0,0.57814197]
[1760537873475,0.51812611,112280.0,112270.0,0.401]
[1760537873694,0.51812611,112280.0,112270.0,0.51552]
[1760537873961,0.51812611,112280.0,112270.0,0.401]
[1760537874186,0.58969602,112280.0,112270.0,0.11552]
[1760537874401,0.58969602,112280.0,112270.0,0.001]
[1760537874643,0.67938614,112280.0,112270.0,0.11552]
[1760537874864,0.71556842,112280.0,112270.0,0.11652]
[1760537875091,0.73479048,112280.0,112270.0,0.11652]
[1760537875320,0.73479048,112280.0,112270.0,0.002]
[1760537875565,0.71556842,112280.0,112270.0,0.11552]
[1760537875775,0.71556842,112280.0,112270.0,0.11652]
[1760537875981,0.71556842,112280.0,112270.0,0.11552]
[1760537876488,0.71556842,112280.0,112270.0,0.001]
[1760537876703,0.72447472,112280.0,112270.0,0.11452]
[1760537876907,0.72447472,112280.0,112270.0,0.11552]
[1760537878243,0.72447472,112280.0,112270.0,0.001]
[1760537878453,0.74369725,112280.0,112270.0,0.001]
[1760537879507,0.76756659,112280.0,112270.0,0.001]
[1760537879711,0.7277993,112280.0,112270.0,0.001]
[1760537879985,0.67212734,112280.0,112270.0,0.001]
[1760537880456,0.54625494,112280.0,112270.0,0.001]
[1760537880650,0.19734864,112280.0,112270.0,0.00149257]
[1760537880870,0.17812611,112280.0,112270.0,0.00149257]
[1760537881086,0.22835493,112280.0,112270.0,0.11548]
[1760537881301,0.53734582,112280.0,112270.0,0.001]
[1760537881526,0.62703594,112280.0,112270.0,0.11548]
[1760537881755,0.68708756,112280.0,112270.0,0.001]